[Event "*** Titled Tuesday 3|2 Blitz"]
[Site "Chess.com"]
[Date "2015.10.06"]
[Round "9"]
[White "FairChess_on_YouTube"]
[Black "IMRosen"]
[Result "1-0"]
[WhiteElo "2715"]
[BlackElo "2252"]
[TimeControl "180+2"]
[EndTime "12:52:06 PDT"]
[Termination "FairChess_on_YouTube won on time"]

1. e4 {[%clk 0:03:01.9]} 1... c5 {[%clk 0:03:00.5]} 2. Nf3 {[%clk 0:03:02.6]}
2... e6 {[%clk 0:03:02.2]} 3. g3 {[%clk 0:03:02.3]} 3... Nc6 {[%clk 0:03:01.7]}
4. Bg2 {[%clk 0:03:03]} 4... d6 {[%clk 0:03:01.3]} 5. O-O {[%clk 0:03:03.5]}
5... Nf6 {[%clk 0:03:02.8]} 6. Re1 {[%clk 0:03:04.5]} 6... Be7 {[%clk
0:03:03.7]} 7. c3 {[%clk 0:03:06]} 7... O-O {[%clk 0:02:58.9]} 8. d4 {[%clk
0:03:07.6]} 8... cxd4 {[%clk 0:02:59.7]} 9. cxd4 {[%clk 0:03:08.7]} 9... a6
{[%clk 0:02:59.4]} 10. Nc3 {[%clk 0:03:09]} 10... Qc7 {[%clk 0:02:56.7]} 11. d5
{[%clk 0:03:09.1]} 11... Ne5 {[%clk 0:02:53.3]} 12. Nd4 {[%clk 0:03:08.1]} 12...
Re8 {[%clk 0:02:42.7]} 13. dxe6 {[%clk 0:03:07.3]} 13... Bxe6 {[%clk 0:02:38.5]}
14. Nxe6 {[%clk 0:03:08.4]} 14... fxe6 {[%clk 0:02:39.9]} 15. Qb3 {[%clk
0:03:09]} 15... Bf8 {[%clk 0:02:40.5]} 16. Bg5 {[%clk 0:03:05.1]} 16... Nc4
{[%clk 0:02:38.5]} 17. Rac1 {[%clk 0:03:04.9]} 17... Rac8 {[%clk 0:02:36.8]} 18.
Bh3 {[%clk 0:03:00.9]} 18... b5 {[%clk 0:02:28.9]} 19. a4 {[%clk 0:03:01.5]}
19... b4 {[%clk 0:01:23.6]} 20. Bxf6 {[%clk 0:02:37.8]} 20... gxf6 {[%clk
0:01:23.5]} 21. Bxe6+ {[%clk 0:02:28.2]} 21... Rxe6 {[%clk 0:01:14.2]} 22. Nd5
{[%clk 0:02:29.7]} 22... Qc5 {[%clk 0:01:04.3]} 23. Qf3 {[%clk 0:02:27.3]} 23...
Ne5 {[%clk 0:00:57.7]} 24. Qf5 {[%clk 0:02:25.3]} 24... Qxc1 {[%clk 0:00:17.8]}
25. Qxe6+ {[%clk 0:02:25.1]} 25... Nf7 {[%clk 0:00:18.3]} 26. Nxf6+ {[%clk
0:02:23.9]} 26... Kg7 {[%clk 0:00:19.7]} 27. Nh5+ {[%clk 0:02:24.7]} 27... Kg8
{[%clk 0:00:18.1]} 28. Rxc1 {[%clk 0:02:25.8]} 28... Rxc1+ {[%clk 0:00:19.2]}
29. Kg2 {[%clk 0:02:27.5]} 29... Rc5 {[%clk 0:00:18.3]} 30. Nf6+ {[%clk
0:02:25.7]} 30... Kg7 {[%clk 0:00:18.5]} 31. Ne8+ {[%clk 0:02:26.5]} 31... Kg8
{[%clk 0:00:19.3]} 32. Nf6+ {[%clk 0:02:28.2]} 32... Kg7 {[%clk 0:00:20.1]} 33.
Nd7 {[%clk 0:02:29.9]} 33... Ra5 {[%clk 0:00:13.2]} 34. Qe8 {[%clk 0:02:29.9]}
1-0

[Event "*** Titled Tuesday 3|2 Blitz"]
[Site "Chess.com"]
[Date "2015.10.06"]
[Round "9"]
[White "MFBerna"]
[Black "PowerThinking2650"]
[Result "1-0"]
[WhiteElo "2106"]
[BlackElo "2075"]
[TimeControl "180+2"]
[EndTime "12:52:14 PDT"]
[Termination "MFBerna won by resignation"]

1. e4 {[%clk 0:03:01.9]} 1... e5 {[%clk 0:03:00.1]} 2. Nf3 {[%clk 0:03:02.7]}
2... Nc6 {[%clk 0:03:01]} 3. Bb5 {[%clk 0:03:04.1]} 3... a6 {[%clk 0:03:01.4]}
4. Ba4 {[%clk 0:03:05.4]} 4... Nf6 {[%clk 0:02:54.2]} 5. O-O {[%clk 0:03:06.1]}
5... Be7 {[%clk 0:02:54]} 6. Re1 {[%clk 0:03:07.3]} 6... b5 {[%clk 0:02:54.6]}
7. Bb3 {[%clk 0:03:08.7]} 7... d6 {[%clk 0:02:56.1]} 8. c3 {[%clk 0:03:09.7]}
8... O-O {[%clk 0:02:56.7]} 9. h3 {[%clk 0:03:11]} 9... Bb7 {[%clk 0:02:57]} 10.
d4 {[%clk 0:03:11.2]} 10... Re8 {[%clk 0:02:56.2]} 11. Nbd2 {[%clk 0:03:11.8]}
11... Bf8 {[%clk 0:02:56.5]} 12. Nf1 {[%clk 0:03:08.6]} 12... exd4 {[%clk
0:02:53.3]} 13. cxd4 {[%clk 0:03:06.9]} 13... Rxe4 {[%clk 0:02:46.4]} 14. Bxf7+
{[%clk 0:02:11.2]} 14... Kh8 {[%clk 0:02:47]} 15. Rxe4 {[%clk 0:02:06.6]} 15...
Nxe4 {[%clk 0:02:47.6]} 16. Bd5 {[%clk 0:01:58.4]} 16... Na5 {[%clk 0:02:10.5]}
17. Bxb7 {[%clk 0:01:56.4]} 17... Nxb7 {[%clk 0:02:11.4]} 18. Qc2 {[%clk
0:01:47.9]} 18... d5 {[%clk 0:02:10.8]} 19. Bf4 {[%clk 0:01:43.7]} 19... Bd6
{[%clk 0:02:08.1]} 20. Bxd6 {[%clk 0:01:43.6]} 20... Nbxd6 {[%clk 0:02:09.1]}
21. Ne5 {[%clk 0:01:34.5]} 21... Qf6 {[%clk 0:01:55.3]} 22. f3 {[%clk
0:01:28.6]} 22... Ng5 {[%clk 0:01:52.1]} 23. Qxc7 {[%clk 0:01:20.7]} 23... Rc8
{[%clk 0:01:52]} 24. Qd7 {[%clk 0:01:13.1]} 24... h5 {[%clk 0:01:37.9]} 25. h4
{[%clk 0:01:11.8]} 25... Rc2 {[%clk 0:01:16.5]} 26. hxg5 {[%clk 0:01:06]} 26...
Qxg5 {[%clk 0:01:17.2]} 27. Qh3 {[%clk 0:00:48.5]} 27... Nf5 {[%clk 0:01:18.1]}
28. Nf7+ {[%clk 0:00:48.6]} 1-0

[Event "*** Titled Tuesday 3|2 Blitz"]
[Site "Chess.com"]
[Date "2015.10.06"]
[Round "9"]
[White "Haridaskesavan"]
[Black "HubertKnott"]
[Result "1-0"]
[WhiteElo "2044"]
[BlackElo "1981"]
[TimeControl "180+2"]
[EndTime "12:52:31 PDT"]
[Termination "Haridaskesavan won by resignation"]

1. c3 {[%clk 0:03:00.3]} 1... d5 {[%clk 0:02:59.7]} 2. g3 {[%clk 0:03:01.5]}
2... Nf6 {[%clk 0:03:00.6]} 3. Bg2 {[%clk 0:03:02.2]} 3... e5 {[%clk 0:03:01.6]}
4. d3 {[%clk 0:03:01]} 4... c6 {[%clk 0:03:00.5]} 5. Nd2 {[%clk 0:02:59.8]} 5...
Be7 {[%clk 0:03:00.9]} 6. Ngf3 {[%clk 0:03:00.9]} 6... Nbd7 {[%clk 0:02:56.8]}
7. e4 {[%clk 0:03:02]} 7... O-O {[%clk 0:02:54.5]} 8. O-O {[%clk 0:03:02.3]}
8... Re8 {[%clk 0:02:55.4]} 9. Re1 {[%clk 0:03:03.4]} 9... Bd6 {[%clk
0:02:54.6]} 10. Nh4 {[%clk 0:03:04]} 10... g6 {[%clk 0:02:54.5]} 11. exd5 {[%clk
0:03:01.1]} 11... cxd5 {[%clk 0:02:51.2]} 12. Nb3 {[%clk 0:02:59]} 12... Nc5
{[%clk 0:02:41.1]} 13. Bg5 {[%clk 0:02:51.4]} 13... Nxb3 {[%clk 0:01:28.3]} 14.
axb3 {[%clk 0:02:46.4]} 14... Bc5 {[%clk 0:01:28.9]} 15. Qf3 {[%clk 0:02:40.6]}
15... Be7 {[%clk 0:01:25.5]} 16. Rxe5 {[%clk 0:02:36.5]} 16... Be6 {[%clk
0:01:11.8]} 17. Rae1 {[%clk 0:02:35.4]} 17... Kg7 {[%clk 0:01:11]} 18. Bh3
{[%clk 0:02:25.8]} 18... Bxh3 {[%clk 0:00:57.4]} 19. Rxe7 {[%clk 0:02:24.8]}
19... Rxe7 {[%clk 0:00:53.2]} 20. Bxf6+ {[%clk 0:02:19.9]} 20... Kf8 {[%clk
0:00:52.5]} 21. Bxe7+ {[%clk 0:02:19.8]} 21... Qxe7 {[%clk 0:00:52.5]} 22. Rxe7
{[%clk 0:02:20.1]} 22... Kxe7 {[%clk 0:00:54.2]} 23. Qxd5 {[%clk 0:02:15.3]}
23... Rd8 {[%clk 0:00:51.1]} 24. Qxb7+ {[%clk 0:02:05]} 24... Rd7 {[%clk
0:00:51.9]} 25. Qb4+ {[%clk 0:02:02.3]} 25... Ke8 {[%clk 0:00:51.3]} 26. d4
{[%clk 0:01:56.5]} 26... Re7 {[%clk 0:00:52.5]} 27. f4 {[%clk 0:01:52.8]} 27...
Re1+ {[%clk 0:00:52.5]} 28. Kf2 {[%clk 0:01:53]} 28... Rf1+ {[%clk 0:00:54]} 29.
Ke2 {[%clk 0:01:53.9]} 29... Rh1 {[%clk 0:00:53.8]} 30. Nf3 {[%clk 0:01:50.3]}
30... Bf1+ {[%clk 0:00:52.2]} 31. Kf2 {[%clk 0:01:50.5]} 31... Bh3 {[%clk
0:00:50.9]} 32. Qb8+ {[%clk 0:01:48.3]} 32... Ke7 {[%clk 0:00:51.5]} 33. Qxa7+
{[%clk 0:01:44.5]} 33... Ke8 {[%clk 0:00:52.1]} 34. Ng5 {[%clk 0:01:43.2]} 34...
Rxh2+ {[%clk 0:00:51.2]} 35. Ke3 {[%clk 0:01:41.3]} 1-0

[Event "*** Titled Tuesday 3|2 Blitz"]
[Site "Chess.com"]
[Date "2015.10.06"]
[Round "9"]
[White "facu57"]
[Black "Tal-Baronfew"]
[Result "1/2-1/2"]
[WhiteElo "2511"]
[BlackElo "2746"]
[TimeControl "180+2"]
[EndTime "12:52:55 PDT"]
[Termination "Game drawn by repetition"]

1. d4 {[%clk 0:03:01.8]} 1... Nf6 {[%clk 0:03:00.5]} 2. Nf3 {[%clk 0:03:02.2]}
2... d5 {[%clk 0:03:00.8]} 3. c4 {[%clk 0:03:02.7]} 3... e6 {[%clk 0:03:02.1]}
4. Nc3 {[%clk 0:03:03.2]} 4... dxc4 {[%clk 0:03:01.8]} 5. e3 {[%clk 0:03:01.6]}
5... a6 {[%clk 0:03:02.8]} 6. a4 {[%clk 0:03:02]} 6... c5 {[%clk 0:03:02.1]} 7.
Bxc4 {[%clk 0:03:03]} 7... Nc6 {[%clk 0:03:03.4]} 8. O-O {[%clk 0:03:01.5]} 8...
Be7 {[%clk 0:03:04.9]} 9. Qe2 {[%clk 0:02:56.6]} 9... cxd4 {[%clk 0:03:06.3]}
10. Rd1 {[%clk 0:02:57.9]} 10... e5 {[%clk 0:03:07.9]} 11. exd4 {[%clk
0:02:56.4]} 11... exd4 {[%clk 0:03:09.5]} 12. Nxd4 {[%clk 0:02:54]} 12... Nxd4
{[%clk 0:03:11.2]} 13. Qe5 {[%clk 0:02:54.1]} 13... Qd6 {[%clk 0:03:12.9]} 14.
Qxd6 {[%clk 0:02:52.6]} 14... Bxd6 {[%clk 0:03:13.7]} 15. Rxd4 {[%clk
0:02:54.1]} 15... Be5 {[%clk 0:03:10.4]} 16. Rd1 {[%clk 0:02:50.6]} 16... O-O
{[%clk 0:03:11.1]} 17. Be3 {[%clk 0:02:51.1]} 17... Bf5 {[%clk 0:03:02.4]} 18.
Bd4 {[%clk 0:02:36.2]} 18... Rfe8 {[%clk 0:03:02.9]} 19. h3 {[%clk 0:02:31.9]}
19... Rac8 {[%clk 0:03:03]} 20. Bxe5 {[%clk 0:02:33]} 20... Rxe5 {[%clk
0:03:03.2]} 21. Rd4 {[%clk 0:02:34.5]} 21... h6 {[%clk 0:02:56]} 22. Rad1 {[%clk
0:02:31.7]} 22... g5 {[%clk 0:02:51.2]} 23. f3 {[%clk 0:02:27.2]} 23... Kg7
{[%clk 0:02:49.7]} 24. Kf2 {[%clk 0:02:26.3]} 24... Re7 {[%clk 0:02:46.7]} 25.
Ba2 {[%clk 0:02:21.6]} 25... Rcc7 {[%clk 0:02:41.2]} 26. R1d2 {[%clk 0:02:12.5]}
26... Be6 {[%clk 0:02:42.1]} 27. Bxe6 {[%clk 0:02:11]} 27... Rxe6 {[%clk
0:02:43.3]} 28. h4 {[%clk 0:02:12.9]} 28... Kg6 {[%clk 0:02:39.5]} 29. hxg5
{[%clk 0:02:13.8]} 29... hxg5 {[%clk 0:02:40.1]} 30. g4 {[%clk 0:02:13.9]} 30...
Rec6 {[%clk 0:02:41.2]} 31. Rb4 {[%clk 0:02:09]} 31... Re6 {[%clk 0:02:34.3]}
32. Rbd4 {[%clk 0:02:08.5]} 32... Rec6 {[%clk 0:02:34.2]} 33. Rb4 {[%clk
0:02:08.2]} 33... Re6 {[%clk 0:02:35]} 34. Kg3 {[%clk 0:02:09.4]} 34... Rec6
{[%clk 0:02:27.5]} 35. Rd8 {[%clk 0:01:08.1]} 35... Re6 {[%clk 0:02:23]} 36.
Rbd4 {[%clk 0:01:07.1]} 36... Rec6 {[%clk 0:02:23.3]} 37. R8d6 {[%clk
0:01:05.7]} 37... Kg7 {[%clk 0:02:22.3]} 38. Rxc6 {[%clk 0:01:04.7]} 38... Rxc6
{[%clk 0:02:23.7]} 39. Rb4 {[%clk 0:01:04.7]} 39... b6 {[%clk 0:02:19.8]} 40.
Rd4 {[%clk 0:01:05.5]} 40... Re6 {[%clk 0:02:19.3]} 41. Rd8 {[%clk 0:01:04]}
41... Rc6 {[%clk 0:02:16.2]} 42. Ra8 {[%clk 0:01:03.6]} 42... a5 {[%clk
0:02:16]} 43. Rd8 {[%clk 0:01:04.9]} 43... Rc4 {[%clk 0:02:12.1]} 44. Rd6 {[%clk
0:01:01.2]} 44... Rb4 {[%clk 0:02:13.1]} 45. Rd2 {[%clk 0:01:02.1]} 45... Kg6
{[%clk 0:02:09.4]} 46. Rd6 {[%clk 0:01:02]} 46... Kg7 {[%clk 0:02:09.2]} 47. Rd2
{[%clk 0:00:58.9]} 47... Kg6 {[%clk 0:02:10]} 48. Rd6 {[%clk 0:00:56.1]} 48...
Kg7 {[%clk 0:02:10.7]} 1/2-1/2

[Event "*** Titled Tuesday 3|2 Blitz"]
[Site "Chess.com"]
[Date "2015.10.06"]
[Round "9"]
[White "Canonkasparov"]
[Black "LyonBeast"]
[Result "1/2-1/2"]
[WhiteElo "2414"]
[BlackElo "2698"]
[TimeControl "180+2"]
[EndTime "12:53:22 PDT"]
[Termination "Game drawn by repetition"]

1. d4 {[%clk 0:03:01.9]} 1... Nf6 {[%clk 0:03:00.2]} 2. Nf3 {[%clk 0:03:02.4]}
2... g6 {[%clk 0:03:01.5]} 3. c3 {[%clk 0:03:02.5]} 3... Bg7 {[%clk 0:03:02.1]}
4. Bg5 {[%clk 0:03:02.6]} 4... b6 {[%clk 0:03:03.2]} 5. Nbd2 {[%clk 0:03:02.4]}
5... Bb7 {[%clk 0:03:04.4]} 6. e3 {[%clk 0:03:02.1]} 6... d6 {[%clk 0:03:04.6]}
7. Bb5+ {[%clk 0:03:01.6]} 7... Nbd7 {[%clk 0:03:04.3]} 8. a4 {[%clk 0:03:01.1]}
8... a6 {[%clk 0:03:05]} 9. Bc4 {[%clk 0:03:01.4]} 9... h6 {[%clk 0:03:04.4]}
10. Bh4 {[%clk 0:03:01.5]} 10... c5 {[%clk 0:03:02.2]} 11. O-O {[%clk 0:03:01]}
11... Qc7 {[%clk 0:03:02]} 12. Qe2 {[%clk 0:02:56.6]} 12... d5 {[%clk
0:02:53.6]} 13. Bd3 {[%clk 0:02:50.2]} 13... O-O {[%clk 0:02:53.7]} 14. Bg3
{[%clk 0:02:50.3]} 14... Qc6 {[%clk 0:02:48.3]} 15. Ne5 {[%clk 0:02:50.1]} 15...
Nxe5 {[%clk 0:02:49.4]} 16. Bxe5 {[%clk 0:02:49.4]} 16... Rfe8 {[%clk
0:02:45.9]} 17. f4 {[%clk 0:02:48.5]} 17... e6 {[%clk 0:02:42.3]} 18. h3 {[%clk
0:02:47.9]} 18... Nd7 {[%clk 0:02:36.6]} 19. Bxg7 {[%clk 0:02:48]} 19... Kxg7
{[%clk 0:02:38.5]} 20. Nf3 {[%clk 0:02:47.1]} 20... c4 {[%clk 0:02:32.4]} 21.
Bc2 {[%clk 0:02:47]} 21... Nf6 {[%clk 0:02:28.7]} 22. Ne5 {[%clk 0:02:44.4]}
22... Qc7 {[%clk 0:02:29.5]} 23. Rf3 {[%clk 0:02:43.2]} 23... Ne4 {[%clk
0:02:27.7]} 24. Bxe4 {[%clk 0:02:42.4]} 24... dxe4 {[%clk 0:02:29.6]} 25. Rg3
{[%clk 0:02:43.3]} 25... Kh7 {[%clk 0:02:12.1]} 26. h4 {[%clk 0:02:42]} 26...
Bd5 {[%clk 0:02:03.2]} 27. h5 {[%clk 0:02:41.7]} 27... g5 {[%clk 0:02:04.4]} 28.
fxg5 {[%clk 0:02:40.8]} 28... hxg5 {[%clk 0:02:06.3]} 29. Rf1 {[%clk 0:02:21.2]}
29... f5 {[%clk 0:02:07.2]} 30. Rxg5 {[%clk 0:02:20.4]} 30... Qe7 {[%clk
0:02:07]} 31. Rg6 {[%clk 0:02:17.8]} 31... Rg8 {[%clk 0:02:08]} 32. Rf4 {[%clk
0:02:08.3]} 32... Rxg6 {[%clk 0:02:06.2]} 33. hxg6+ {[%clk 0:02:08.2]} 33... Kg7
{[%clk 0:02:07.3]} 34. Qf2 {[%clk 0:02:07.2]} 34... Rh8 {[%clk 0:02:07.6]} 35.
Qg3 {[%clk 0:02:05.7]} 35... b5 {[%clk 0:02:00.6]} 36. axb5 {[%clk 0:02:05.2]}
36... axb5 {[%clk 0:02:02.5]} 37. Nf7 {[%clk 0:02:04.2]} 37... Rh5 {[%clk
0:02:03.1]} 38. Kf2 {[%clk 0:01:54.7]} 38... b4 {[%clk 0:01:59.3]} 39. Kg1
{[%clk 0:01:48.8]} 39... bxc3 {[%clk 0:01:53.9]} 40. bxc3 {[%clk 0:01:48.4]}
40... Qa3 {[%clk 0:01:41.9]} 41. Rf1 {[%clk 0:01:46.9]} 41... Qxc3 {[%clk
0:01:42.4]} 42. Qe5+ {[%clk 0:01:42.2]} 42... Kxg6 {[%clk 0:01:43.2]} 43. Nh8+
{[%clk 0:01:37]} 43... Kh7 {[%clk 0:01:20.9]} 44. Qc7+ {[%clk 0:01:14.5]} 44...
Kxh8 {[%clk 0:01:22]} 45. Qd8+ {[%clk 0:01:14.6]} 45... Kg7 {[%clk 0:01:23.2]}
46. Qe7+ {[%clk 0:01:14.5]} 46... Kg6 {[%clk 0:01:24.6]} 47. Qe8+ {[%clk
0:01:13.4]} 47... Kf6 {[%clk 0:01:25.8]} 48. Qf8+ {[%clk 0:01:11.1]} 48... Kg6
{[%clk 0:01:27.3]} 49. Qg8+ {[%clk 0:01:10.6]} 49... Kf6 {[%clk 0:01:28.7]} 50.
Qf8+ {[%clk 0:01:11.2]} 50... Kg6 {[%clk 0:01:30.2]} 51. Qg8+ {[%clk 0:01:11.9]}
51... Kf6 {[%clk 0:01:31.8]} 52. Qf8+ {[%clk 0:01:12.5]} 52... Kg6 {[%clk
0:01:33.2]} 1/2-1/2

[Event "*** Titled Tuesday 3|2 Blitz"]
[Site "Chess.com"]
[Date "2015.10.06"]
[Round "9"]
[White "GregShahade"]
[Black "kikydu96"]
[Result "1-0"]
[WhiteElo "2312"]
[BlackElo "2278"]
[TimeControl "180+2"]
[EndTime "12:53:58 PDT"]
[Termination "GregShahade won by resignation"]

1. c4 {[%clk 0:02:58.1]} 1... e5 {[%clk 0:03:00.2]} 2. g3 {[%clk 0:02:58.4]}
2... Nc6 {[%clk 0:02:58.7]} 3. Bg2 {[%clk 0:02:58.6]} 3... Bc5 {[%clk
0:03:00.1]} 4. Nc3 {[%clk 0:02:56.8]} 4... d6 {[%clk 0:03:00.5]} 5. Nf3 {[%clk
0:02:58.2]} 5... a6 {[%clk 0:03:01.6]} 6. O-O {[%clk 0:02:59.3]} 6... h5 {[%clk
0:03:00.4]} 7. d3 {[%clk 0:02:44.6]} 7... h4 {[%clk 0:02:59.9]} 8. Nxh4 {[%clk
0:02:43.5]} 8... Rxh4 {[%clk 0:03:00.1]} 9. gxh4 {[%clk 0:02:43.9]} 9... Qxh4
{[%clk 0:03:01.7]} 10. Be3 {[%clk 0:02:42.6]} 10... Bh3 {[%clk 0:02:46.6]} 11.
Bxh3 {[%clk 0:02:37.9]} 11... Qxh3 {[%clk 0:02:43.6]} 12. Bxc5 {[%clk
0:02:35.3]} 12... Nf6 {[%clk 0:02:31.8]} 13. f3 {[%clk 0:02:05]} 13... dxc5
{[%clk 0:02:19.2]} 14. Nd5 {[%clk 0:02:04.1]} 14... O-O-O {[%clk 0:02:13.1]} 15.
Rf2 {[%clk 0:01:57.4]} 15... Nxd5 {[%clk 0:01:50.2]} 16. cxd5 {[%clk 0:01:57.2]}
16... Rxd5 {[%clk 0:01:51]} 17. Qf1 {[%clk 0:01:56.9]} 17... Qh6 {[%clk
0:01:40.4]} 18. Rg2 {[%clk 0:01:56.6]} 18... Nd4 {[%clk 0:01:38.9]} 19. Qf2
{[%clk 0:01:54.2]} 19... Nc2 {[%clk 0:01:35.7]} 20. Rb1 {[%clk 0:01:45.5]} 20...
Ne3 {[%clk 0:01:35.9]} 21. Rg3 {[%clk 0:01:41.5]} 21... f5 {[%clk 0:01:26.4]}
22. Kh1 {[%clk 0:01:41.8]} 22... f4 {[%clk 0:01:18.7]} 23. Rgg1 {[%clk
0:01:41.2]} 23... g5 {[%clk 0:01:19.4]} 24. Rbc1 {[%clk 0:01:38.3]} 24... b6
{[%clk 0:01:05.8]} 25. a3 {[%clk 0:01:38.5]} 25... a5 {[%clk 0:01:04.6]} 26. Rb1
{[%clk 0:01:25.7]} 26... a4 {[%clk 0:01:04.8]} 27. b3 {[%clk 0:01:24.9]} 27...
axb3 {[%clk 0:01:03.1]} 28. Rxb3 {[%clk 0:01:26.8]} 28... Rd8 {[%clk 0:01:00.4]}
29. a4 {[%clk 0:01:24.9]} 29... Rh8 {[%clk 0:00:58.3]} 30. a5 {[%clk 0:01:24.5]}
30... Kb7 {[%clk 0:00:38.4]} 31. axb6 {[%clk 0:01:24.1]} 31... cxb6 {[%clk
0:00:39.1]} 32. Rgb1 {[%clk 0:01:24.9]} 32... Ra8 {[%clk 0:00:26.9]} 33. Rxb6+
{[%clk 0:01:01.9]} 33... Qxb6 {[%clk 0:00:23.2]} 34. Rxb6+ {[%clk 0:01:03.3]}
34... Kxb6 {[%clk 0:00:24.8]} 35. Qg1 {[%clk 0:01:04.7]} 35... Kc7 {[%clk
0:00:18.6]} 36. h4 {[%clk 0:01:00.4]} 36... Rh8 {[%clk 0:00:17.7]} 37. Qxg5
{[%clk 0:00:59.5]} 37... Kd6 {[%clk 0:00:15.2]} 38. Qf6+ {[%clk 0:01:00.1]} 1-0

[Event "*** Titled Tuesday 3|2 Blitz"]
[Site "Chess.com"]
[Date "2015.10.06"]
[Round "9"]
[White "BakaPG"]
[Black "Arashy_CC"]
[Result "0-1"]
[WhiteElo "2482"]
[BlackElo "2375"]
[TimeControl "180+2"]
[EndTime "12:54:03 PDT"]
[Termination "Arashy_CC won by resignation"]

1. e4 {[%clk 0:03:01.9]} 1... g6 {[%clk 0:03:01.9]} 2. d4 {[%clk 0:03:00.8]}
2... Bg7 {[%clk 0:03:03.8]} 3. Nc3 {[%clk 0:03:01]} 3... d6 {[%clk 0:03:04.8]}
4. Be3 {[%clk 0:02:59.3]} 4... a6 {[%clk 0:03:05.8]} 5. f3 {[%clk 0:02:56.6]}
5... b5 {[%clk 0:03:07.2]} 6. Qd2 {[%clk 0:02:57]} 6... Nd7 {[%clk 0:03:05.6]}
7. Nge2 {[%clk 0:02:53.3]} 7... Bb7 {[%clk 0:02:44.1]} 8. g4 {[%clk 0:02:48]}
8... h5 {[%clk 0:02:43.1]} 9. g5 {[%clk 0:02:47.2]} 9... e6 {[%clk 0:02:34.9]}
10. h4 {[%clk 0:02:47.6]} 10... Ne7 {[%clk 0:02:36.2]} 11. Ng3 {[%clk
0:02:46.7]} 11... Nb6 {[%clk 0:02:36.4]} 12. b3 {[%clk 0:02:42.8]} 12... O-O
{[%clk 0:02:24]} 13. a4 {[%clk 0:02:39.6]} 13... b4 {[%clk 0:02:20.9]} 14. Nce2
{[%clk 0:02:40]} 14... a5 {[%clk 0:02:22.2]} 15. Rd1 {[%clk 0:02:40]} 15... d5
{[%clk 0:02:17.7]} 16. e5 {[%clk 0:02:38.2]} 16... Nd7 {[%clk 0:02:11.8]} 17.
Bh3 {[%clk 0:02:38.1]} 17... c5 {[%clk 0:02:10.5]} 18. f4 {[%clk 0:02:36.3]}
18... c4 {[%clk 0:02:05.7]} 19. O-O {[%clk 0:02:35.9]} 19... Rc8 {[%clk
0:01:52.6]} 20. Bf2 {[%clk 0:02:35.3]} 20... Qb6 {[%clk 0:01:49.3]} 21. Rfe1
{[%clk 0:02:35.4]} 21... Rc6 {[%clk 0:01:45.1]} 22. Qe3 {[%clk 0:02:35.1]} 22...
Rfc8 {[%clk 0:01:46.4]} 23. Qf3 {[%clk 0:02:30.3]} 23... Nf8 {[%clk 0:01:37.3]}
24. Nxh5 {[%clk 0:02:28.7]} 24... gxh5 {[%clk 0:01:38.1]} 25. Qxh5 {[%clk
0:02:29.2]} 25... cxb3 {[%clk 0:01:37.6]} 26. cxb3 {[%clk 0:02:28.6]} 26... Ba6
{[%clk 0:01:39.1]} 27. Ng3 {[%clk 0:02:26.9]} 27... Rc3 {[%clk 0:01:18.9]} 28.
f5 {[%clk 0:02:14.3]} 28... Rxg3+ {[%clk 0:01:07.8]} 29. Bxg3 {[%clk 0:02:13.8]}
29... exf5 {[%clk 0:01:09.7]} 30. Qf3 {[%clk 0:02:03]} 30... Ne6 {[%clk
0:00:58.6]} 31. Bxf5 {[%clk 0:01:34.8]} 31... Nxd4 {[%clk 0:00:33.3]} 32. Rxd4
{[%clk 0:01:30.5]} 32... Qxd4+ {[%clk 0:00:35.2]} 33. Bf2 {[%clk 0:01:30.6]}
33... Rc3 {[%clk 0:00:23.3]} 34. Bh7+ {[%clk 0:01:30.4]} 34... Kf8 {[%clk
0:00:18.5]} 35. Qh5 {[%clk 0:01:13.1]} 35... Rg3+ {[%clk 0:00:18.3]} 36. Kh1
{[%clk 0:01:07.4]} 36... Qxf2 {[%clk 0:00:20.2]} 0-1

[Event "*** Titled Tuesday 3|2 Blitz"]
[Site "Chess.com"]
[Date "2015.10.06"]
[Round "9"]
[White "oggy1984"]
[Black "Chesster_30"]
[Result "1-0"]
[WhiteElo "2356"]
[BlackElo "1800"]
[TimeControl "180+2"]
[EndTime "12:54:07 PDT"]
[Termination "oggy1984 won by resignation"]

1. e4 {[%clk 0:02:57.7]} 1... c5 {[%clk 0:03:00.4]} 2. Nf3 {[%clk 0:02:57.2]}
2... d6 {[%clk 0:03:01.3]} 3. d4 {[%clk 0:02:57.6]} 3... cxd4 {[%clk 0:03:03.2]}
4. Nxd4 {[%clk 0:02:58.1]} 4... Nf6 {[%clk 0:03:04.2]} 5. Nc3 {[%clk 0:02:58.2]}
5... a6 {[%clk 0:03:04.6]} 6. Be2 {[%clk 0:02:52.7]} 6... e5 {[%clk 0:03:04.6]}
7. Nb3 {[%clk 0:02:51.3]} 7... Be7 {[%clk 0:02:59.3]} 8. a4 {[%clk 0:02:51.2]}
8... O-O {[%clk 0:02:59.3]} 9. a5 {[%clk 0:02:46.5]} 9... Be6 {[%clk 0:02:59.2]}
10. O-O {[%clk 0:02:43.3]} 10... Nc6 {[%clk 0:02:58.2]} 11. f4 {[%clk
0:02:31.3]} 11... exf4 {[%clk 0:02:46.6]} 12. Bxf4 {[%clk 0:02:30.8]} 12... Ne5
{[%clk 0:02:47.3]} 13. Nd4 {[%clk 0:02:26.2]} 13... Rc8 {[%clk 0:02:31]} 14. Kh1
{[%clk 0:02:19.1]} 14... Re8 {[%clk 0:02:25.1]} 15. Nxe6 {[%clk 0:02:13]} 15...
fxe6 {[%clk 0:02:19.4]} 16. Bxe5 {[%clk 0:01:56.5]} 16... dxe5 {[%clk
0:02:18.8]} 17. Bg4 {[%clk 0:01:55.8]} 17... Rc6 {[%clk 0:02:13.9]} 18. Bh3
{[%clk 0:01:44]} 18... Qxd1 {[%clk 0:02:10.3]} 19. Raxd1 {[%clk 0:01:37.7]}
19... Rd8 {[%clk 0:02:08.6]} 20. g3 {[%clk 0:01:18.6]} 20... Rdd6 {[%clk
0:02:04.3]} 21. Rd3 {[%clk 0:01:08.2]} 21... Rxd3 {[%clk 0:02:03.8]} 22. cxd3
{[%clk 0:01:08.2]} 22... Bb4 {[%clk 0:02:03.6]} 23. Ra1 {[%clk 0:00:59.2]} 23...
Kf7 {[%clk 0:02:00.4]} 24. Nd1 {[%clk 0:00:51.2]} 24... Rc2 {[%clk 0:01:53.1]}
25. Ne3 {[%clk 0:00:46.6]} 25... Rxb2 {[%clk 0:01:49.5]} 26. Nc4 {[%clk
0:00:47.1]} 26... Rc2 {[%clk 0:01:44.2]} 27. Nxe5+ {[%clk 0:00:46.6]} 27... Ke7
{[%clk 0:01:44.7]} 28. Rb1 {[%clk 0:00:44.4]} 28... Bxa5 {[%clk 0:01:35.4]} 29.
Rxb7+ {[%clk 0:00:43.3]} 29... Kd8 {[%clk 0:01:34.1]} 30. Rxg7 {[%clk
0:00:37.9]} 30... Rc1+ {[%clk 0:01:33.2]} 31. Kg2 {[%clk 0:00:38.2]} 31... Bc3
{[%clk 0:01:23.2]} 32. Nc6+ {[%clk 0:00:36.3]} 32... Ke8 {[%clk 0:01:20.5]} 33.
Bxe6 {[%clk 0:00:35.7]} 33... Rc2+ {[%clk 0:01:14]} 34. Kh3 {[%clk 0:00:35.4]}
34... Kf8 {[%clk 0:00:52.7]} 35. Rf7+ {[%clk 0:00:34.3]} 35... Ke8 {[%clk
0:00:53.9]} 36. e5 {[%clk 0:00:29.8]} 36... Ng8 {[%clk 0:00:35.4]} 1-0